[Event "*** Titled Tuesday Blitz"]
[Site "Chess.com"]
[Date "2021.03.09"]
[Round "3"]
[White "queen_iryna"]
[Black "ukchessbomber"]
[Result "0-1"]
[WhiteElo "2347"]
[BlackElo "2540"]
[TimeControl "180+1"]
[EndTime "10:30:27 PST"]
[Termination "ukchessbomber won by resignation"]

1. e4 {[%clk 0:03:00.9]} 1... g6 {[%clk 0:03:00.2]} 2. d4 {[%clk 0:03:00.4]}
2... d6 {[%clk 0:03:00.7]} 3. Nc3 {[%clk 0:03:00.8]} 3... Bg7 {[%clk 0:03:01.6]}
4. Be3 {[%clk 0:03:01]} 4... c6 {[%clk 0:03:02]} 5. h4 {[%clk 0:02:58.2]} 5...
h5 {[%clk 0:03:00.8]} 6. Qd2 {[%clk 0:02:52.7]} 6... b5 {[%clk 0:03:00.4]} 7. f3
{[%clk 0:02:48.8]} 7... b4 {[%clk 0:03:00]} 8. Nd1 {[%clk 0:02:39.9]} 8... Qa5
{[%clk 0:03:00.3]} 9. Nf2 {[%clk 0:02:37.1]} 9... e5 {[%clk 0:03:00.7]} 10. Ne2
{[%clk 0:02:30.8]} 10... Ne7 {[%clk 0:02:59.6]} 11. dxe5 {[%clk 0:02:12.1]}
11... dxe5 {[%clk 0:03:00.5]} 12. Qd6 {[%clk 0:02:09.1]} 12... Be6 {[%clk
0:02:52.2]} 13. Bc5 {[%clk 0:02:03.1]} 13... Nc8 {[%clk 0:01:59.8]} 14. Bxb4
{[%clk 0:01:54.9]} 14... Nxd6 {[%clk 0:01:59.4]} 15. Bxa5 {[%clk 0:01:55]} 15...
Nc4 {[%clk 0:02:00.3]} 16. Bc3 {[%clk 0:01:47.5]} 16... Ne3 {[%clk 0:01:57.1]}
17. Kd2 {[%clk 0:01:35.3]} 17... Bh6 {[%clk 0:01:39.7]} 18. f4 {[%clk
0:01:34.9]} 18... Nc4+ {[%clk 0:01:39.3]} 19. Ke1 {[%clk 0:01:28.3]} 19... O-O
{[%clk 0:01:39.3]} 20. g3 {[%clk 0:01:18.9]} 20... Ne3 {[%clk 0:01:38]} 21. Kd2
{[%clk 0:01:17.2]} 21... Nc4+ {[%clk 0:01:35.4]} 22. Ke1 {[%clk 0:01:16.7]}
22... Rd8 {[%clk 0:01:34.1]} 23. Nd3 {[%clk 0:01:10.4]} 23... Ne3 {[%clk
0:01:23.3]} 24. Kd2 {[%clk 0:01:09.5]} 24... Ng4 {[%clk 0:01:23.9]} 25. Ke1
{[%clk 0:00:43.8]} 25... f5 {[%clk 0:00:58.2]} 26. Nxe5 {[%clk 0:00:35.7]} 26...
Ne3 {[%clk 0:00:56.4]} 27. Rc1 {[%clk 0:00:35.7]} 27... fxe4 {[%clk 0:00:43.1]}
28. Nd4 {[%clk 0:00:31.3]} 28... Bf5 {[%clk 0:00:30.3]} 29. Nxf5 {[%clk
0:00:21.1]} 29... gxf5 {[%clk 0:00:31.2]} 30. Bc4+ {[%clk 0:00:21.3]} 30... Nxc4
{[%clk 0:00:30.9]} 31. Nxc4 {[%clk 0:00:22.2]} 31... Kh7 {[%clk 0:00:27.5]} 32.
Ke2 {[%clk 0:00:22.3]} 32... Rg8 {[%clk 0:00:27.2]} 33. Rhg1 {[%clk 0:00:20.4]}
33... Na6 {[%clk 0:00:25.2]} 34. b4 {[%clk 0:00:18.8]} 34... Nc7 {[%clk
0:00:24]} 35. Rcd1 {[%clk 0:00:18.7]} 35... Nd5 {[%clk 0:00:24]} 36. Bd2 {[%clk
0:00:18.2]} 36... Bf8 {[%clk 0:00:23.6]} 37. Ne3 {[%clk 0:00:17.5]} 37... Kg6
{[%clk 0:00:14.1]} 38. Nxd5 {[%clk 0:00:16.8]} 38... cxd5 {[%clk 0:00:15]} 39.
Bc3 {[%clk 0:00:16.7]} 39... Rd8 {[%clk 0:00:15.2]} 40. a3 {[%clk 0:00:15.3]}
40... Be7 {[%clk 0:00:15.3]} 41. Bd4 {[%clk 0:00:15.4]} 41... a6 {[%clk
0:00:15.3]} 42. c3 {[%clk 0:00:15.6]} 42... Rc8 {[%clk 0:00:15.1]} 43. Ke3
{[%clk 0:00:15.7]} 43... Rgd8 {[%clk 0:00:15.5]} 44. Rc1 {[%clk 0:00:15.2]}
44... Rc4 {[%clk 0:00:15.6]} 45. Rgd1 {[%clk 0:00:14.6]} 45... Kf7 {[%clk
0:00:16.2]} 46. a4 {[%clk 0:00:14.6]} 46... Ke6 {[%clk 0:00:16]} 47. a5 {[%clk
0:00:14.6]} 47... Rg8 {[%clk 0:00:15.4]} 48. Kf2 {[%clk 0:00:14.3]} 48... Rgc8
{[%clk 0:00:15.5]} 49. Ke3 {[%clk 0:00:13.9]} 49... Bxb4 {[%clk 0:00:15.2]} 50.
Rb1 {[%clk 0:00:11.2]} 50... Bxa5 {[%clk 0:00:11.9]} 51. Rb7 {[%clk 0:00:10.8]}
51... Bxc3 {[%clk 0:00:11.1]} 52. Rb6+ {[%clk 0:00:11.1]} 52... R8c6 {[%clk
0:00:11]} 53. Rxc6+ {[%clk 0:00:05.9]} 53... Rxc6 {[%clk 0:00:11.9]} 54. Rb1
{[%clk 0:00:04.3]} 54... Bxd4+ {[%clk 0:00:09.4]} 55. Kxd4 {[%clk 0:00:05.2]}
55... Rc4+ {[%clk 0:00:10.1]} 56. Ke3 {[%clk 0:00:05]} 56... d4+ {[%clk
0:00:10.8]} 57. Kd2 {[%clk 0:00:04.3]} 57... d3 {[%clk 0:00:09.5]} 58. Rb6+
{[%clk 0:00:03.8]} 58... Kd5 {[%clk 0:00:10.1]} 59. Rxa6 {[%clk 0:00:03.8]}
59... Rc2+ {[%clk 0:00:10.8]} 60. Kd1 {[%clk 0:00:03.5]} 60... e3 {[%clk
0:00:08.3]} 61. Ra5+ {[%clk 0:00:02.7]} 61... Ke4 {[%clk 0:00:08]} 62. Ra4+
{[%clk 0:00:02.9]} 62... Kf3 {[%clk 0:00:08.2]} 63. Ra1 {[%clk 0:00:01.6]} 63...
Rh2 {[%clk 0:00:08.8]} 64. Kc1 {[%clk 0:00:01.3]} 64... Rh1+ {[%clk 0:00:09.3]}
65. Kb2 {[%clk 0:00:02.2]} 65... Rxa1 {[%clk 0:00:10]} 0-1

[Event "*** Titled Tuesday Blitz"]
[Site "Chess.com"]
[Date "2021.03.09"]
[Round "3"]
[White "ChampStan"]
[Black "kayrakamer"]
[Result "0-1"]
[WhiteElo "2021"]
[BlackElo "2697"]
[TimeControl "180+1"]
[EndTime "10:30:28 PST"]
[Termination "kayrakamer won by resignation"]

1. d4 {[%clk 0:03:00.9]} 1... Nf6 {[%clk 0:02:59.6]} 2. c4 {[%clk 0:02:59.4]}
2... g6 {[%clk 0:02:59.1]} 3. Nf3 {[%clk 0:02:58.4]} 3... Bg7 {[%clk 0:02:59.5]}
4. g3 {[%clk 0:02:58]} 4... O-O {[%clk 0:03:00.4]} 5. Bg2 {[%clk 0:02:56.6]}
5... c6 {[%clk 0:03:01.3]} 6. O-O {[%clk 0:02:56]} 6... d6 {[%clk 0:03:02]} 7.
Nc3 {[%clk 0:02:54.4]} 7... Qa5 {[%clk 0:03:01.7]} 8. e4 {[%clk 0:02:49.1]} 8...
e5 {[%clk 0:03:01]} 9. h3 {[%clk 0:02:47]} 9... Nbd7 {[%clk 0:02:57.5]} 10. Be3
{[%clk 0:02:46.1]} 10... exd4 {[%clk 0:02:56.5]} 11. Nxd4 {[%clk 0:02:44.4]}
11... Ne5 {[%clk 0:02:56.5]} 12. Qe2 {[%clk 0:02:20.2]} 12... c5 {[%clk
0:02:56.2]} 13. Ndb5 {[%clk 0:02:17.3]} 13... Be6 {[%clk 0:02:54.1]} 14. Nxd6
{[%clk 0:02:03.7]} 14... Qa6 {[%clk 0:02:33.6]} 15. Bxc5 {[%clk 0:01:39.4]}
15... Nfd7 {[%clk 0:02:32.3]} 16. Bb4 {[%clk 0:01:22.8]} 16... Nc6 {[%clk
0:02:16.5]} 17. f4 {[%clk 0:00:36.4]} 17... Nxb4 {[%clk 0:02:12.4]} 18. e5
{[%clk 0:00:35.3]} 18... Nc6 {[%clk 0:01:59.8]} 19. Rad1 {[%clk 0:00:28.7]}
19... Qb6+ {[%clk 0:01:47.9]} 20. Kh2 {[%clk 0:00:27.4]} 20... Nd4 {[%clk
0:01:48]} 21. Qf2 {[%clk 0:00:23.1]} 21... Nf5 {[%clk 0:01:45.3]} 22. Qxb6
{[%clk 0:00:20.7]} 22... Nxb6 {[%clk 0:01:41.9]} 23. Nxf5 {[%clk 0:00:19.2]}
23... gxf5 {[%clk 0:01:36.5]} 24. b3 {[%clk 0:00:18.8]} 24... Rab8 {[%clk
0:01:34.5]} 25. Rd6 {[%clk 0:00:17.8]} 25... Rfd8 {[%clk 0:01:27.6]} 26. Rfd1
{[%clk 0:00:17.1]} 26... Rxd6 {[%clk 0:01:28.2]} 27. Rxd6 {[%clk 0:00:17.3]}
27... Bf8 {[%clk 0:01:27]} 28. Rd1 {[%clk 0:00:16]} 28... Bb4 {[%clk 0:01:22.7]}
29. Nb5 {[%clk 0:00:16]} 29... a6 {[%clk 0:01:08.3]} 30. Nc7 {[%clk 0:00:15.8]}
30... Kf8 {[%clk 0:01:01.1]} 31. a4 {[%clk 0:00:15.7]} 31... Ke7 {[%clk
0:00:57.4]} 32. Nd5+ {[%clk 0:00:15.2]} 32... Nxd5 {[%clk 0:00:44]} 33. cxd5
{[%clk 0:00:16.1]} 33... Bd7 {[%clk 0:00:44.4]} 34. Rc1 {[%clk 0:00:15]} 34...
Rc8 {[%clk 0:00:40.7]} 35. d6+ {[%clk 0:00:15.2]} 35... Kd8 {[%clk 0:00:39.7]}
36. Rxc8+ {[%clk 0:00:11.9]} 36... Kxc8 {[%clk 0:00:39.4]} 37. Bd5 {[%clk
0:00:11.3]} 37... Be6 {[%clk 0:00:39.2]} 38. Bxe6+ {[%clk 0:00:10.7]} 38... fxe6
{[%clk 0:00:40.1]} 39. g4 {[%clk 0:00:10.6]} 39... Kd7 {[%clk 0:00:32.6]} 40.
Kg3 {[%clk 0:00:09.3]} 40... Be1+ {[%clk 0:00:21.7]} 41. Kf3 {[%clk 0:00:09]}
41... Kc6 {[%clk 0:00:21.9]} 42. Ke2 {[%clk 0:00:06.8]} 42... Ba5 {[%clk
0:00:20.2]} 43. Kf3 {[%clk 0:00:07]} 43... Kd5 {[%clk 0:00:18.3]} 44. Ke3 {[%clk
0:00:05.1]} 44... Bb6+ {[%clk 0:00:16.7]} 45. Kd3 {[%clk 0:00:05.4]} 45... Bf2
{[%clk 0:00:12.1]} 46. a5 {[%clk 0:00:03.8]} 46... Bc5 {[%clk 0:00:07.4]} 47.
Kc3 {[%clk 0:00:02.1]} 47... Kc6 {[%clk 0:00:04.6]} 48. b4 {[%clk 0:00:02.1]}
48... Be3 {[%clk 0:00:04.8]} 49. gxf5 {[%clk 0:00:01.7]} 49... exf5 {[%clk
0:00:05.2]} 50. Kd3 {[%clk 0:00:01.6]} 50... Bxf4 {[%clk 0:00:05.5]} 51. Kd4
{[%clk 0:00:02.2]} 51... Bd2 {[%clk 0:00:05.5]} 52. h4 {[%clk 0:00:01.1]} 52...
Bxb4 {[%clk 0:00:05.1]} 53. Ke3 {[%clk 0:00:01]} 53... Bxa5 {[%clk 0:00:04.6]}
54. Kf4 {[%clk 0:00:01.5]} 54... Bb4 {[%clk 0:00:04.9]} 55. Kxf5 {[%clk
0:00:01.8]} 55... Bxd6 {[%clk 0:00:05.6]} 56. exd6 {[%clk 0:00:01.7]} 56... Kxd6
{[%clk 0:00:06.5]} 0-1

[Event "*** Titled Tuesday Blitz"]
[Site "Chess.com"]
[Date "2021.03.09"]
[Round "3"]
[White "Vaathi_Coming"]
[Black "ural58"]
[Result "0-1"]
[WhiteElo "2795"]
[BlackElo "2559"]
[TimeControl "180+1"]
[EndTime "10:30:36 PST"]
[Termination "ural58 won by checkmate"]

1. e4 {[%clk 0:03:00.6]} 1... d5 {[%clk 0:02:57.9]} 2. exd5 {[%clk 0:03:00.6]}
2... Qxd5 {[%clk 0:02:57.2]} 3. Nc3 {[%clk 0:03:00.8]} 3... Qa5 {[%clk
0:02:57.2]} 4. d4 {[%clk 0:03:00.6]} 4... Nf6 {[%clk 0:02:56.5]} 5. Nf3 {[%clk
0:03:00.3]} 5... Nc6 {[%clk 0:02:55.9]} 6. Bb5 {[%clk 0:02:37.9]} 6... Ne4
{[%clk 0:02:55.3]} 7. O-O {[%clk 0:02:31.8]} 7... Nxc3 {[%clk 0:02:55]} 8. Bxc6+
{[%clk 0:02:32.1]} 8... bxc6 {[%clk 0:02:55.8]} 9. bxc3 {[%clk 0:02:32.9]} 9...
Bf5 {[%clk 0:02:56]} 10. Re1 {[%clk 0:02:20]} 10... e6 {[%clk 0:02:55.5]} 11.
Bd2 {[%clk 0:02:05.1]} 11... Qa4 {[%clk 0:02:52.8]} 12. Ne5 {[%clk 0:02:04.8]}
12... Bd6 {[%clk 0:02:50]} 13. Qf3 {[%clk 0:01:55.9]} 13... Bxe5 {[%clk
0:02:44]} 14. Rxe5 {[%clk 0:01:45.4]} 14... O-O {[%clk 0:02:42.9]} 15. h4 {[%clk
0:01:35.1]} 15... Qxc2 {[%clk 0:02:34.7]} 16. Bf4 {[%clk 0:01:35.2]} 16... Rab8
{[%clk 0:02:24.6]} 17. Qxc6 {[%clk 0:01:23.3]} 17... Rb1+ {[%clk 0:02:13.2]} 18.
Re1 {[%clk 0:01:22.7]} 18... Rxe1+ {[%clk 0:02:10.9]} 19. Rxe1 {[%clk
0:01:22.3]} 19... Qxa2 {[%clk 0:02:11]} 20. Qxc7 {[%clk 0:01:22.6]} 20... a5
{[%clk 0:02:09.9]} 21. c4 {[%clk 0:01:18.4]} 21... a4 {[%clk 0:02:06]} 22. Bd6
{[%clk 0:01:04.3]} 22... Ra8 {[%clk 0:01:39.8]} 23. Qb7 {[%clk 0:01:02.4]} 23...
Rd8 {[%clk 0:01:35.3]} 24. c5 {[%clk 0:00:57.5]} 24... Qd2 {[%clk 0:00:53.9]}
25. Rf1 {[%clk 0:00:53.8]} 25... Qxd4 {[%clk 0:00:51]} 26. c6 {[%clk 0:00:54]}
26... Qxd6 {[%clk 0:00:16.4]} 27. c7 {[%clk 0:00:54]} 27... h5 {[%clk
0:00:16.4]} 28. Rc1 {[%clk 0:00:32.3]} 28... e5 {[%clk 0:00:11.6]} 29. cxd8=Q+
{[%clk 0:00:27.7]} 29... Qxd8 {[%clk 0:00:11.8]} 30. Qb5 {[%clk 0:00:18.1]}
30... Qxh4 {[%clk 0:00:11.4]} 31. Qe8+ {[%clk 0:00:10.2]} 31... Kh7 {[%clk
0:00:11.4]} 32. Qxf7 {[%clk 0:00:11.1]} 32... Bg6 {[%clk 0:00:11.5]} 33. Qc4
{[%clk 0:00:04.7]} 33... Qg5 {[%clk 0:00:07.5]} 34. Ra1 {[%clk 0:00:02.4]} 34...
Be8 {[%clk 0:00:07.4]} 35. Qe4+ {[%clk 0:00:01.8]} 35... Qg6 {[%clk 0:00:06.5]}
36. Qe3 {[%clk 0:00:01.9]} 36... e4 {[%clk 0:00:06]} 37. Qd4 {[%clk 0:00:02.1]}
37... Qc6 {[%clk 0:00:06.1]} 38. Qe3 {[%clk 0:00:02]} 38... Bg6 {[%clk
0:00:05.9]} 39. Rc1 {[%clk 0:00:02.3]} 39... Qd5 {[%clk 0:00:05.4]} 40. Qf4
{[%clk 0:00:01.1]} 40... a3 {[%clk 0:00:03.9]} 41. Qe3 {[%clk 0:00:01.8]} 41...
a2 {[%clk 0:00:03.8]} 42. Qa3 {[%clk 0:00:02.2]} 42... Bf7 {[%clk 0:00:04.1]}
43. Ra1 {[%clk 0:00:02.1]} 43... Qe5 {[%clk 0:00:04.1]} 44. Qc1 {[%clk
0:00:02.3]} 44... Qf6 {[%clk 0:00:03.6]} 45. Qe1 {[%clk 0:00:02.4]} 45... Qd4
{[%clk 0:00:03.3]} 46. Rd1 {[%clk 0:00:02.2]} 46... Qb2 {[%clk 0:00:01.9]} 47.
Qxe4+ {[%clk 0:00:02.1]} 47... Bg6 {[%clk 0:00:02.1]} 48. Qe1 {[%clk 0:00:02]}
48... Bc2 {[%clk 0:00:02]} 49. Qd2 {[%clk 0:00:01.6]} 49... a1=Q {[%clk
0:00:02]} 50. Rxa1 {[%clk 0:00:02]} 50... Qxa1+ {[%clk 0:00:02.4]} 51. Kh2
{[%clk 0:00:02.8]} 51... Qb1 {[%clk 0:00:02.9]} 52. Qg5 {[%clk 0:00:02.5]} 52...
Bg6 {[%clk 0:00:03.8]} 53. g3 {[%clk 0:00:02.7]} 53... Qc2 {[%clk 0:00:03.6]}
54. Qf4 {[%clk 0:00:03]} 54... Qc8 {[%clk 0:00:03.8]} 55. Qe3 {[%clk 0:00:02.8]}
55... Qg4 {[%clk 0:00:04.4]} 56. Qc5 {[%clk 0:00:02.7]} 56... Qf5 {[%clk
0:00:04.8]} 57. Qe3 {[%clk 0:00:02.6]} 57... Qe4 {[%clk 0:00:04.6]} 58. Qc5
{[%clk 0:00:02.9]} 58... Qf5 {[%clk 0:00:04.3]} 59. Qe3 {[%clk 0:00:02.9]} 59...
Qf7 {[%clk 0:00:05]} 60. Qc5 {[%clk 0:00:03.2]} 60... Bf5 {[%clk 0:00:05.2]} 61.
Qe3 {[%clk 0:00:03.5]} 61... Qg6 {[%clk 0:00:05.8]} 62. Qc5 {[%clk 0:00:03.5]}
62... Qg4 {[%clk 0:00:06.4]} 63. Qe3 {[%clk 0:00:03.7]} 63... Be4 {[%clk
0:00:06.3]} 64. Qc5 {[%clk 0:00:03]} 64... Qf3 {[%clk 0:00:06.7]} 65. Qc1 {[%clk
0:00:01.2]} 65... Qg2# {[%clk 0:00:06.5]} 0-1

[Event "*** Titled Tuesday Blitz"]
[Site "Chess.com"]
[Date "2021.03.09"]
[Round "3"]
[White "lider34"]
[Black "Mazanchenko_Dmitry"]
[Result "0-1"]
[WhiteElo "2466"]
[BlackElo "2154"]
[TimeControl "180+1"]
[EndTime "10:30:41 PST"]
[Termination "Mazanchenko_Dmitry won on time"]

1. e4 {[%clk 0:03:00.9]} 1... c5 {[%clk 0:02:59]} 2. c3 {[%clk 0:03:00.3]} 2...
d5 {[%clk 0:02:58.7]} 3. exd5 {[%clk 0:03:00]} 3... Qxd5 {[%clk 0:02:59.6]} 4.
d4 {[%clk 0:03:00.5]} 4... Nc6 {[%clk 0:03:00]} 5. Nf3 {[%clk 0:02:59.8]} 5...
e5 {[%clk 0:03:00.3]} 6. Nxe5 {[%clk 0:02:56.5]} 6... Nxe5 {[%clk 0:02:59.1]} 7.
dxe5 {[%clk 0:02:56.6]} 7... Qxd1+ {[%clk 0:02:59.2]} 8. Kxd1 {[%clk 0:02:55.9]}
8... Bg4+ {[%clk 0:03:00.1]} 9. Be2 {[%clk 0:02:47.5]} 9... O-O-O+ {[%clk
0:03:01]} 10. Ke1 {[%clk 0:02:47.2]} 10... Bxe2 {[%clk 0:03:00.3]} 11. Kxe2
{[%clk 0:02:48.1]} 11... Re8 {[%clk 0:03:00.7]} 12. f4 {[%clk 0:02:45.5]} 12...
f6 {[%clk 0:03:00.2]} 13. Be3 {[%clk 0:02:30.5]} 13... fxe5 {[%clk 0:02:59.7]}
14. f5 {[%clk 0:02:30.4]} 14... Nf6 {[%clk 0:02:57.8]} 15. Nd2 {[%clk
0:02:29.5]} 15... b6 {[%clk 0:02:41]} 16. a4 {[%clk 0:02:28]} 16... Kc7 {[%clk
0:02:35.2]} 17. a5 {[%clk 0:02:26.9]} 17... b5 {[%clk 0:02:35.3]} 18. Rad1
{[%clk 0:02:20.2]} 18... a6 {[%clk 0:02:30.5]} 19. Nb3 {[%clk 0:02:06.8]} 19...
c4 {[%clk 0:02:27.5]} 20. Nc5 {[%clk 0:01:44.1]} 20... Bxc5 {[%clk 0:02:25.4]}
21. Bxc5 {[%clk 0:01:45]} 21... Kc6 {[%clk 0:02:21.3]} 22. Be3 {[%clk
0:01:37.7]} 22... Rd8 {[%clk 0:02:16.2]} 23. Bb6 {[%clk 0:01:26.4]} 23... Rxd1
{[%clk 0:02:14.6]} 24. Rxd1 {[%clk 0:01:27.3]} 24... Nd5 {[%clk 0:02:14.6]} 25.
Bf2 {[%clk 0:01:26.8]} 25... Rd8 {[%clk 0:02:12.4]} 26. Bg3 {[%clk 0:01:22.6]}
26... Nf4+ {[%clk 0:02:02.3]} 27. Bxf4 {[%clk 0:01:20.8]} 27... Rxd1 {[%clk
0:02:02]} 28. Kxd1 {[%clk 0:01:20.6]} 28... exf4 {[%clk 0:02:02.3]} 29. Ke2
{[%clk 0:01:20.4]} 29... Kd5 {[%clk 0:02:02.1]} 30. Kf3 {[%clk 0:01:20.5]} 30...
Ke5 {[%clk 0:02:02.3]} 31. Kg4 {[%clk 0:01:16.7]} 31... Ke4 {[%clk 0:01:46.7]}
32. h4 {[%clk 0:00:57.9]} 32... h6 {[%clk 0:01:26]} 33. f6 {[%clk 0:00:39.7]}
33... gxf6 {[%clk 0:01:26.9]} 34. Kh5 {[%clk 0:00:39.5]} 34... Ke3 {[%clk
0:00:41.6]} 35. Kxh6 {[%clk 0:00:39.2]} 35... Kf2 {[%clk 0:00:41.4]} 36. Kg6
{[%clk 0:00:39]} 36... Kxg2 {[%clk 0:00:41.1]} 37. h5 {[%clk 0:00:39.2]} 37...
f3 {[%clk 0:00:41.5]} 38. h6 {[%clk 0:00:39.6]} 38... f2 {[%clk 0:00:42.4]} 39.
h7 {[%clk 0:00:39.8]} 39... f1=Q {[%clk 0:00:42.7]} 40. h8=Q {[%clk 0:00:40.3]}
40... Qb1+ {[%clk 0:00:30.5]} 41. Kxf6 {[%clk 0:00:35.7]} 41... Qxb2 {[%clk
0:00:30.9]} 42. Qa8+ {[%clk 0:00:33.3]} 42... Kf2 {[%clk 0:00:29.1]} 43. Qxa6
{[%clk 0:00:32.9]} 43... Qxc3+ {[%clk 0:00:28.7]} 44. Ke6 {[%clk 0:00:28.7]}
44... Qe3+ {[%clk 0:00:23.7]} 45. Kd5 {[%clk 0:00:27.3]} 45... Qd3+ {[%clk
0:00:23.5]} 46. Kc5 {[%clk 0:00:26.7]} 46... c3 {[%clk 0:00:20.7]} 47. Qf6+
{[%clk 0:00:24.8]} 47... Ke2 {[%clk 0:00:19.9]} 48. a6 {[%clk 0:00:18]} 48... c2
{[%clk 0:00:19.7]} 49. Qb2 {[%clk 0:00:17.5]} 49... Kd1 {[%clk 0:00:15.2]} 50.
a7 {[%clk 0:00:15.1]} 50... c1=Q+ {[%clk 0:00:15.1]} 51. Qxc1+ {[%clk
0:00:14.5]} 51... Kxc1 {[%clk 0:00:15.7]} 52. a8=Q {[%clk 0:00:14.9]} 52... Qc4+
{[%clk 0:00:16]} 53. Kd6 {[%clk 0:00:12.9]} 53... b4 {[%clk 0:00:16.3]} 54. Qh1+
{[%clk 0:00:12]} 54... Kb2 {[%clk 0:00:16]} 55. Qg2+ {[%clk 0:00:11.8]} 55...
Qc2 {[%clk 0:00:14.9]} 56. Qg7+ {[%clk 0:00:10.7]} 56... Kb3 {[%clk 0:00:13.4]}
57. Qf7+ {[%clk 0:00:10.3]} 57... Qc4 {[%clk 0:00:12.8]} 58. Qf3+ {[%clk
0:00:09.8]} 58... Qc3 {[%clk 0:00:12.2]} 59. Qf7+ {[%clk 0:00:09.3]} 59... Kb2
{[%clk 0:00:10.9]} 60. Qf2+ {[%clk 0:00:08.4]} 60... Ka3 {[%clk 0:00:11.2]} 61.
Qa7+ {[%clk 0:00:07.5]} 61... Kb3 {[%clk 0:00:11.5]} 62. Qf7+ {[%clk 0:00:07.1]}
62... Kc2 {[%clk 0:00:11.7]} 63. Qa2+ {[%clk 0:00:03.4]} 63... Qb2 {[%clk
0:00:09.6]} 64. Qc4+ {[%clk 0:00:03]} 64... Qc3 {[%clk 0:00:09.6]} 65. Qa2+
{[%clk 0:00:01.7]} 65... Kd3 {[%clk 0:00:10]} 66. Qa6+ {[%clk 0:00:01.1]} 66...
Qc4 {[%clk 0:00:09.2]} 0-1

[Event "*** Titled Tuesday Blitz"]
[Site "Chess.com"]
[Date "2021.03.09"]
[Round "3"]
[White "ChessAurochs"]
[Black "kingofthenil"]
[Result "1-0"]
[WhiteElo "2589"]
[BlackElo "2792"]
[TimeControl "180+1"]
[EndTime "10:30:44 PST"]
[Termination "ChessAurochs won by resignation"]

1. e4 {[%clk 0:03:00.9]} 1... Nc6 {[%clk 0:03:00]} 2. Nf3 {[%clk 0:02:56.8]}
2... d5 {[%clk 0:03:00.9]} 3. e5 {[%clk 0:02:47.4]} 3... Bg4 {[%clk 0:02:59.7]}
4. d4 {[%clk 0:02:46.9]} 4... Bxf3 {[%clk 0:02:59.2]} 5. gxf3 {[%clk 0:02:47.8]}
5... e6 {[%clk 0:02:59.5]} 6. Be3 {[%clk 0:02:45]} 6... Qh4 {[%clk 0:02:58.8]}
7. c3 {[%clk 0:02:43.3]} 7... Nh6 {[%clk 0:02:57.7]} 8. Bd3 {[%clk 0:02:41.8]}
8... g6 {[%clk 0:02:53.4]} 9. Qd2 {[%clk 0:02:38.5]} 9... Nf5 {[%clk 0:02:51.7]}
10. Na3 {[%clk 0:02:28.4]} 10... Qh5 {[%clk 0:02:51.6]} 11. Be2 {[%clk
0:02:17.3]} 11... Nxe3 {[%clk 0:02:51.8]} 12. Qxe3 {[%clk 0:02:16.9]} 12... Bh6
{[%clk 0:02:51.8]} 13. Qd3 {[%clk 0:02:14.4]} 13... Qh4 {[%clk 0:02:49.1]} 14.
Nc2 {[%clk 0:02:11.2]} 14... f6 {[%clk 0:02:44.8]} 15. exf6 {[%clk 0:02:08.1]}
15... Qxf6 {[%clk 0:02:45.7]} 16. Ne3 {[%clk 0:02:07.8]} 16... O-O-O {[%clk
0:02:45.3]} 17. Ng4 {[%clk 0:02:07.9]} 17... Qf8 {[%clk 0:02:43.2]} 18. Nxh6
{[%clk 0:02:06.6]} 18... Qxh6 {[%clk 0:02:44.1]} 19. Qe3 {[%clk 0:02:07.3]}
19... Qg7 {[%clk 0:02:24.9]} 20. O-O-O {[%clk 0:02:05.9]} 20... e5 {[%clk
0:02:25.8]} 21. dxe5 {[%clk 0:01:44.9]} 21... Qxe5 {[%clk 0:02:26.7]} 22. Bb5
{[%clk 0:01:41.8]} 22... Qxe3+ {[%clk 0:02:23.8]} 23. fxe3 {[%clk 0:01:42.7]}
23... Ne5 {[%clk 0:02:24.7]} 24. Be2 {[%clk 0:01:38.7]} 24... Rhe8 {[%clk
0:02:22.2]} 25. h4 {[%clk 0:01:32.5]} 25... c6 {[%clk 0:02:19.8]} 26. h5 {[%clk
0:01:31.8]} 26... g5 {[%clk 0:02:20.3]} 27. h6 {[%clk 0:01:32.2]} 27... Nf7
{[%clk 0:02:20.3]} 28. Kd2 {[%clk 0:01:28.1]} 28... Re6 {[%clk 0:02:19.3]} 29.
Bd3 {[%clk 0:01:28.5]} 29... Kc7 {[%clk 0:02:01.5]} 30. Bxh7 {[%clk 0:01:27.1]}
30... Rh8 {[%clk 0:02:01.6]} 31. Bd3 {[%clk 0:01:19.1]} 31... Rexh6 {[%clk
0:02:02.5]} 32. Rxh6 {[%clk 0:01:18.8]} 32... Rxh6 {[%clk 0:02:03.4]} 33. Rg1
{[%clk 0:01:17.4]} 33... Rh2+ {[%clk 0:02:03]} 34. Be2 {[%clk 0:01:17.9]} 34...
Ne5 {[%clk 0:02:00.8]} 35. Ke1 {[%clk 0:01:06]} 35... Nc4 {[%clk 0:01:09.7]} 36.
Rxg5 {[%clk 0:00:34]} 36... Nxe3 {[%clk 0:00:56]} 37. Re5 {[%clk 0:00:31]} 37...
Ng2+ {[%clk 0:00:55.4]} 38. Kd1 {[%clk 0:00:17.4]} 38... Kd6 {[%clk 0:00:51.5]}
39. Re8 {[%clk 0:00:17]} 39... Nf4 {[%clk 0:00:49.6]} 40. Ke1 {[%clk 0:00:09.8]}
40... Kd7 {[%clk 0:00:44.7]} 41. Re5 {[%clk 0:00:09.8]} 41... Kd6 {[%clk
0:00:44.2]} 42. Re8 {[%clk 0:00:08.9]} 42... c5 {[%clk 0:00:37.5]} 43. b3 {[%clk
0:00:08.8]} 43... d4 {[%clk 0:00:29]} 44. cxd4 {[%clk 0:00:09.7]} 44... cxd4
{[%clk 0:00:29.9]} 45. Re4 {[%clk 0:00:09.7]} 45... Nxe2 {[%clk 0:00:11.4]} 46.
Rxe2 {[%clk 0:00:09.3]} 46... Rh3 {[%clk 0:00:09.6]} 47. Rf2 {[%clk 0:00:06.8]}
47... Ke5 {[%clk 0:00:07]} 48. Kd2 {[%clk 0:00:07.1]} 48... Rh4 {[%clk
0:00:04.9]} 49. Kd3 {[%clk 0:00:07.5]} 49... Rf4 {[%clk 0:00:05.5]} 50. Rf1
{[%clk 0:00:07.6]} 50... Kd5 {[%clk 0:00:05.6]} 51. a4 {[%clk 0:00:08]} 51... a5
{[%clk 0:00:05.4]} 52. Kd2 {[%clk 0:00:08.1]} 52... Rh4 {[%clk 0:00:02.3]} 53.
Kd3 {[%clk 0:00:08.6]} 53... Rf4 {[%clk 0:00:02.4]} 54. Kd2 {[%clk 0:00:08.8]}
54... b6 {[%clk 0:00:03]} 55. Kd3 {[%clk 0:00:09.2]} 55... Rf8 {[%clk
0:00:03.6]} 56. f4 {[%clk 0:00:09]} 56... Re8 {[%clk 0:00:04.3]} 57. f5 {[%clk
0:00:09.1]} 57... Re3+ {[%clk 0:00:05.2]} 58. Kd2 {[%clk 0:00:09.5]} 58... Kd6
{[%clk 0:00:02.2]} 59. f6 {[%clk 0:00:09.2]} 59... Re8 {[%clk 0:00:02.8]} 60.
Kd3 {[%clk 0:00:08.4]} 60... Rf8 {[%clk 0:00:02.8]} 61. Kxd4 {[%clk 0:00:07.6]}
61... Rf7 {[%clk 0:00:03.2]} 62. Kc4 {[%clk 0:00:07.7]} 62... Kc6 {[%clk
0:00:03.5]} 63. Rf5 {[%clk 0:00:07.7]} 63... Kb7 {[%clk 0:00:01.9]} 64. Kd5
{[%clk 0:00:07.4]} 64... Kc7 {[%clk 0:00:01.4]} 65. Ke6 {[%clk 0:00:07.8]} 65...
Rf8 {[%clk 0:00:01.8]} 66. f7 {[%clk 0:00:06.7]} 66... Kd8 {[%clk 0:00:01.6]}
67. Rd5+ {[%clk 0:00:06.4]} 67... Kc7 {[%clk 0:00:01.6]} 68. Ke7 {[%clk
0:00:07]} 68... Rxf7+ {[%clk 0:00:01.1]} 69. Kxf7 {[%clk 0:00:07.9]} 69... Kc6
{[%clk 0:00:01.1]} 70. Rb5 {[%clk 0:00:08.5]} 70... Kc7 {[%clk 0:00:01.3]} 71.
Ke6 {[%clk 0:00:09.4]} 71... Kc6 {[%clk 0:00:02.2]} 72. Ke5 {[%clk 0:00:09.7]}
1-0